bitfinex-derivatives/quotes_ETHF0:USTF0_20241230
["timestamp","ask_amount","ask_price","bid_price","bid_amount"]
[1735577358661,0.30079,3330.7,3330.6,0.30079]
[1735577359464,6.14440388,3331.1,3330.5,1.299]
[1735577359656,0.30076,3331.0,3330.7,0.30079]
[1735577359855,6.14440388,3331.1,3330.5,1.299]
[1735577360065,1.659,3330.9,3330.5,1.299]
[1735577360360,0.30078,3330.9,3330.8,0.30078]
[1735577360555,6.14440388,3331.1,3330.5,1.299]
[1735577360755,6.89630388,3331.1,3330.5,1.299]
[1735577360958,0.3008,3330.6,3330.5,1.299]
[1735577361262,0.3008,3330.6,3330.5,1.59981]
[1735577361562,0.30079,3330.7,3330.6,0.30079]
[1735577361955,0.3008,3330.6,3330.5,1.299]
[1735577362164,0.3008,3330.6,3330.3,3.2078]
[1735577362165,2.93660388,3330.8,3330.3,3.2078]
[1735577362364,0.30081,3330.4,3330.3,3.2078]
[1735577362755,0.30081,3330.4,3329.8,3.50866]
[1735577362756,0.30086,3329.9,3329.8,3.50866]
[1735577362955,0.30086,3329.9,3329.7,0.8559]
[1735577363258,0.30084,3330.2,3330.1,0.30084]
[1735577363461,0.30083,3330.2,3330.1,0.30084]
[1735577364260,0.8416,3330.5,3329.8,3.2078]
[1735577364460,0.30085,3330.1,3330.0,0.30084]
[1735577364855,3.2078,3330.6,3330.5,0.30081]
[1735577365054,3.95968,3331.2,3330.2,5.25788]
[1735577365261,0.30079,3330.7,3330.6,0.30079]
[1735577365462,0.8169,3331.1,3330.6,3.2078]
[1735577365760,4.0282,3331.2,3331.1,0.30075]
[1735577366065,4.0282,3331.2,3330.6,4.78309]
[1735577366269,4.32895,3331.2,3331.1,0.30075]
[1735577366764,3.50855,3331.2,3331.1,0.30075]
[1735577367161,3.2078,3331.2,3330.7,0.75198]
[1735577367459,3.2078,3331.2,3330.6,3.2078]
[1735577367655,0.3008,3330.6,3330.5,0.3008]
[1735577367862,0.30079,3330.7,3330.6,0.30079]
[1735577368163,0.30078,3330.8,3330.7,0.30078]
[1735577368362,0.30079,3330.7,3330.4,0.8536]
[1735577368562,0.3008,3330.6,3330.5,0.3008]
[1735577368762,0.30079,3330.7,3330.6,0.30079]
[1735577368965,0.30078,3330.8,3330.7,0.30079]
[1735577369167,0.30076,3331.0,3330.9,0.30076]
[1735577369965,0.30077,3330.9,3330.8,0.30077]
[1735577370661,3.2078,3331.2,3330.8,0.30077]
[1735577370860,0.30077,3331.0,3330.9,0.30076]
[1735577371161,3.50855,3331.2,3331.1,0.30075]
[1735577371361,0.30076,3331.1,3331.0,0.30076]
[1735577371663,0.30076,3331.1,3331.0,0.30075]
[1735577372165,3.2078,3331.2,3330.6,3.9598]
[1735577372368,3.2078,3331.2,3331.1,0.30075]
[1735577373269,2.63525622,3331.7,3331.6,0.30071]
[1735577373462,3.2078,3331.8,3331.1,3.2078]
[1735577373867,0.30071,3331.6,3331.2,1.0526]
[1735577374067,0.30072,3331.5,3331.4,0.30072]
[1735577374567,0.30072,3331.5,3331.1,3.2078]
[1735577374568,0.30071,3331.6,3331.5,0.30071]
[1735577374965,3.2078,3331.8,3331.1,3.2078]
[1735577375165,0.30072,3331.5,3331.4,0.30072]
[1735577375367,3.2078,3331.8,3331.1,3.2078]
[1735577375564,0.75177,3331.6,3331.0,0.871]
[1735577375771,0.30077,3330.9,3330.8,6.97564872]
[1735577375967,6.14440388,3331.3,3330.8,6.97564872]
[1735577376174,6.95010388,3331.3,3330.7,10.18344872]
[1735577376360,0.30076,3331.0,3330.9,0.30076]
[1735577376569,0.30075,3331.1,3331.0,0.30075]
[1735577376871,4.31423,3331.3,3331.2,0.30074]
[1735577377165,0.30075,3331.2,3331.1,0.30075]
[1735577377372,4.0135,3331.3,3331.2,0.30074]
[1735577377569,4.0135,3331.3,3330.9,0.7944]
[1735577377570,3.2078,3331.8,3330.9,0.7944]
[1735577377776,0.30072,3331.5,3331.0,0.75191]
[1735577377962,0.30072,3331.5,3330.9,0.7944]
[1735577377963,2.63525622,3331.6,3331.5,0.30072]
[1735577378565,2.33454622,3331.6,3331.2,0.841]
[1735577378761,0.30072,3331.5,3331.4,0.30072]
[1735577378968,0.30072,3331.5,3330.9,0.7944]
[1735577378969,3.2078,3331.8,3330.9,0.7944]
[1735577379177,0.75182,3331.4,3330.8,7.27641872]
[1735577379473,0.30077,3331.0,3330.9,0.30077]
[1735577379867,0.30077,3330.9,3330.8,7.27641872]
[1735577380067,0.30077,3330.9,3330.8,6.97564872]
[1735577380571,0.3008,3330.6,3330.5,0.3008]
[1735577381269,0.3008,3330.6,3330.4,8.27364872]
[1735577381270,2.93660388,3331.1,3330.4,8.27364872]
[1735577381476,0.30084,3330.5,3330.4,6.97564872]
[1735577381867,3.2078,3330.5,3330.1,6.97564872]
[1735577382064,1.5757,3330.4,3330.1,6.97564872]
[1735577382263,0.30086,3330.2,3330.1,6.97564872]
[1735577383378,1.5757,3330.4,3330.0,0.8274]
[1735577383569,1.5757,3330.4,3329.7,1.298]
[1735577383570,0.3009,3329.8,3329.7,1.298]
[1735577383765,0.3009,3329.8,3329.7,1.5989]
[1735577384168,0.3009,3329.8,3329.7,0.3009]
[1735577384571,3.2078,3330.0,3329.6,8.52544872]
[1735577384777,0.30091,3329.7,3329.6,8.82635872]
[1735577385574,0.30091,3329.7,3329.6,1.85071]
[1735577385769,0.30091,3329.8,3329.7,0.3009]
[1735577385972,3.2078,3330.0,3329.6,1.85071]
[1735577385973,0.30091,3329.7,3329.6,1.85071]
[1735577386772,0.30089,3329.9,3329.8,0.30089]
[1735577387470,3.2078,3330.0,3329.6,1.5498]
[1735577387671,0.3009,3329.8,3329.7,0.3009]
[1735577387878,0.3009,3329.9,3329.6,1.5498]
[1735577388073,3.2078,3330.0,3329.6,1.5498]
[1735577388479,0.30091,3329.7,3329.6,1.85071]
[1735577388873,3.2078,3330.0,3329.5,4.5058]
[1735577389071,0.30092,3329.6,3329.5,4.80673]
[1735577389279,3.2078,3330.0,3329.5,4.5058]
[1735577389681,0.30092,3329.6,3329.5,4.80672]
[1735577390477,0.30092,3329.6,3329.5,1.59892]
[1735577391384,0.30092,3329.7,3329.6,0.30091]
[1735577391684,3.2078,3330.0,3329.3,2.0858]
[1735577391981,0.30092,3329.7,3329.6,0.30091]
[1735577392177,3.2078,3330.0,3329.3,2.0858]
[1735577392178,3.96002,3330.0,3329.5,0.30092]
[1735577392379,3.96002,3330.0,3329.3,2.0858]
[1735577392380,0.30094,3329.4,3329.3,0.7878]
[1735577392778,0.30094,3329.4,3329.3,1.08874]
[1735577393177,0.75229,3329.7,3329.5,0.30092]
[1735577393178,0.30092,3329.6,3329.5,0.30092]
[1735577393485,0.30093,3329.5,3329.4,0.30093]
[1735577394285,0.7984,3329.7,3329.3,0.7878]
[1735577394483,0.30092,3329.6,3329.5,0.30092]
[1735577394784,0.7984,3329.7,3329.6,0.30092]
[1735577395087,1.09931,3329.7,3329.6,0.30092]
[1735577395384,0.7984,3329.7,3329.1,3.2078]
[1735577395777,0.7984,3329.7,3329.4,0.30093]
[1735577395778,0.30093,3329.5,3329.4,0.30093]
[1735577396786,0.7984,3329.7,3329.1,3.2078]
[1735577396985,0.30094,3329.4,3329.3,0.30094]
[1735577397381,0.30095,3329.3,3329.2,0.30095]
[1735577397783,0.30094,3329.4,3329.3,0.30094]
[1735577398786,0.7984,3329.7,3329.1,3.2078]
[1735577399085,0.30093,3329.6,3329.5,0.30092]
[1735577399678,0.30094,3329.4,3329.3,0.30093]
[1735577400285,0.30093,3329.6,3329.5,0.30092]
[1735577400686,0.30094,3329.5,3329.4,0.30093]
[1735577400986,0.30093,3329.6,3329.5,0.30092]
[1735577401184,3.08994086,3329.7,3329.1,3.2078]
[1735577401380,0.30093,3329.6,3329.5,0.30092]
[1735577402286,0.30093,3329.5,3329.4,0.30093]
[1735577402482,3.08994086,3329.7,3329.2,0.75239]
[1735577402687,1.09931,3329.7,3329.6,0.30092]
[1735577402885,0.8381,3329.8,3329.2,0.75239]
[1735577403084,0.8381,3329.8,3329.7,0.30091]
[1735577403283,1.139,3329.8,3329.7,0.30091]
[1735577403490,0.8381,3329.8,3329.7,0.30091]
[1735577403689,3.2078,3330.0,3329.4,0.75233]
[1735577403891,3.50868,3330.0,3329.9,0.30089]
[1735577404088,3.2078,3330.0,3329.9,0.30089]
[1735577404895,5.54234622,3330.4,3330.3,0.30085]
[1735577405190,5.84318622,3330.4,3330.3,0.30085]
[1735577405388,5.54234622,3330.4,3329.7,1.6547]
[1735577405584,0.30091,3329.7,3329.6,0.30091]
[1735577406189,1.9003,3329.8,3329.7,0.30091]
[1735577406489,0.30092,3329.6,3329.5,0.30092]
[1735577406798,1.5994,3329.8,3329.4,7.27657872]
[1735577406799,0.30093,3329.5,3329.4,7.27657872]
[1735577406986,0.30093,3329.5,3329.4,6.97564872]
[1735577407187,0.30093,3329.5,3329.4,7.27658872]
[1735577407387,0.30093,3329.5,3329.4,0.30094]
[1735577408094,2.35166,3329.8,3329.2,1.298]
[1735577408297,0.30094,3329.4,3329.3,0.30094]
[1735577408493,0.30094,3329.3,3329.2,1.298]
[1735577408889,0.30097,3329.1,3329.0,0.30097]
[1735577409090,0.30098,3329.0,3328.9,0.30097]
[1735577410898,0.7803,3329.2,3328.8,0.8034]
[1735577411104,3.2078,3329.5,3328.8,0.8034]
[1735577411405,0.30097,3329.1,3329.0,0.30096]
[1735577411607,0.30098,3329.0,3328.9,0.30098]
[1735577413296,0.7659,3329.4,3328.9,0.30098]
[1735577413501,0.30097,3329.1,3329.0,0.30096]
[1735577413701,0.7659,3329.4,3328.8,0.8034]
[1735577413909,0.30098,3329.0,3328.9,0.30097]
[1735577414409,0.30098,3329.1,3329.0,0.30096]
[1735577414999,0.7659,3329.4,3328.8,0.8034]
[1735577415201,0.7659,3329.4,3328.8,1.55587]
[1735577415402,0.30096,3329.2,3329.1,0.30096]
[1735577415598,0.30097,3329.1,3329.0,0.30096]
[1735577417009,0.30096,3329.2,3329.1,0.30096]
[1735577419516,0.30097,3329.1,3329.0,0.30097]
[1735577420011,0.30096,3329.2,3329.1,0.30096]
[1735577420215,0.30095,3329.3,3329.2,0.30095]
[1735577420405,0.30096,3329.2,3329.1,0.30096]
[1735577420605,3.2078,3329.5,3329.0,0.75244]
[1735577420809,5.54234622,3329.9,3329.8,0.3009]
[1735577421106,2.33454622,3329.9,3329.8,0.3009]
[1735577421311,1.06444622,3329.9,3329.8,43.39244086]
[1735577421508,3.50181933,3330.0,3329.9,0.30089]
[1735577421711,3.50181933,3330.0,3329.9,4.27189]
[1735577421910,3.50181933,3330.0,3329.9,5.06499]
[1735577422512,0.30084,3330.5,3330.4,0.30084]
[1735577422718,1.147,3330.9,3330.8,0.30081]
[1735577423615,0.8462,3330.9,3330.4,1.298]
[1735577423813,0.30081,3330.8,3330.7,0.30081]
[1735577424016,0.30083,3330.7,3330.6,0.30082]
[1735577425714,0.8462,3330.9,3330.7,0.30081]
[1735577425912,1.147,3330.9,3330.8,0.30081]
[1735577426518,0.8462,3330.9,3330.8,0.30081]
[1735577426919,0.8462,3330.9,3330.8,1.08551]
[1735577427915,4.16438,3331.4,3330.8,0.7847]
[1735577428122,0.8259,3331.3,3330.8,0.7847]
[1735577428613,1.12667,3331.3,3331.2,0.30077]
[1735577429017,0.8259,3331.3,3331.2,0.30077]
[1735577429216,4.16438,3331.4,3331.2,1.297]
[1735577429412,4.16438,3331.4,3331.3,0.30076]
[1735577430020,0.95658,3331.4,3331.3,0.30076]
[1735577432718,0.95658,3331.4,3331.3,7.59230086]
[1735577432919,0.8137,3332.3,3332.2,0.30068]
[1735577433330,3.50181933,3332.5,3332.4,0.30066]
[1735577435117,0.7626,3333.1,3332.9,0.30062]
[1735577435723,0.7626,3333.1,3333.0,0.30061]
[1735577436311,0.842,3333.2,3333.1,0.3006]
[1735577436816,0.30062,3332.9,3332.8,1.297]
[1735577437023,0.30062,3333.0,3332.6,1.297]
[1735577437316,0.823,3333.1,3332.6,1.297]
[1735577437518,0.823,3333.1,3332.9,0.30061]
[1735577437825,0.30062,3333.0,3332.6,1.297]
[1735577438125,4.0308,3333.1,3332.6,1.297]
[1735577438323,0.30064,3332.7,3332.6,1.297]
[1735577438522,0.30065,3332.6,3332.5,3.2078]
[1735577439118,0.30065,3332.6,3332.5,3.50846]
[1735577439319,0.30065,3332.6,3332.5,3.2078]
[1735577439819,0.7906,3332.9,3332.5,3.2078]
[1735577440123,4.0308,3333.1,3332.8,0.30062]
[1735577440322,4.0308,3333.1,3333.0,0.30061]
[1735577440823,3.2078,3333.1,3333.0,0.30061]
[1735577441022,0.3006,3333.1,3333.0,0.30061]
[1735577441229,0.842,3333.2,3333.1,0.3006]
[1735577441433,1.14259,3333.2,3333.1,0.3006]
[1735577441730,0.842,3333.2,3333.1,0.3006]
[1735577448229,3.2078,3333.6,3333.1,2.59214086]
[1735577448427,0.7508,3333.6,3333.5,0.30056]
[1735577450338,0.7508,3333.6,3333.5,1.59656]
[1735577450635,3.50829,3334.4,3334.3,0.30049]
[1735577450833,0.7799,3334.5,3333.8,0.75135]
[1735577450834,0.7799,3334.5,3334.2,2.29154086]
[1735577451129,0.7799,3334.5,3334.4,0.30048]
[1735577451929,0.7763,3334.6,3334.5,0.30047]
[1735577453541,0.30044,3335.0,3334.5,2.29154086]
[1735577453740,0.30044,3335.0,3334.9,0.30044]
[1735577454039,1.5562,3335.1,3335.0,0.30043]
[1735577454340,1.85662,3335.1,3335.0,0.30043]
[1735577454642,1.5562,3335.1,3335.0,0.30043]
[1735577455235,1.85662,3335.1,3335.0,0.30043]
[1735577455535,1.5562,3335.1,3335.0,0.30043]
[1735577455741,0.30045,3334.8,3334.4,3.2078]
[1735577455938,1.5562,3335.1,3334.4,3.2078]
[1735577456140,0.30044,3334.9,3334.4,3.2078]
[1735577456337,0.30044,3334.9,3334.8,0.30045]
[1735577456941,1.5562,3335.1,3334.5,0.30047]
[1735577457240,0.30047,3334.5,3334.4,3.50828]
[1735577457437,0.30046,3334.7,3334.4,3.2078]
[1735577457640,0.30046,3334.7,3334.6,0.30047]
[1735577457840,0.30047,3334.5,3334.4,0.30048]
[1735577458036,1.5562,3335.1,3334.5,0.30047]
[1735577458240,0.7799,3335.1,3334.5,0.30047]
[1735577458446,0.7799,3335.1,3334.8,0.30044]
[1735577458447,0.30044,3334.9,3334.8,0.30044]
[1735577458842,0.30045,3334.8,3334.3,1.295]
[1735577459140,0.30045,3334.8,3334.7,0.30046]
[1735577459538,0.7799,3335.1,3334.3,1.295]
[1735577459739,0.30048,3334.4,3334.3,1.59549]
[1735577460041,0.30048,3334.4,3334.3,1.295]
[1735577460340,5.49934086,3334.4,3333.5,3.2078]
[1735577460540,0.30057,3333.5,3333.4,0.30057]
[1735577460840,3.2078,3334.0,3333.3,3.58654086]
[1735577461243,0.30056,3333.7,3333.6,0.30055]
[1735577461541,8.2078,3334.0,3333.2,0.30058]
[1735577461744,5.49934086,3333.5,3332.9,4.5028]
[1735577462048,3.2078,3333.5,3332.9,4.5028]
[1735577462343,1.5628,3333.6,3333.5,0.30056]
[1735577462344,0.7668,3333.6,3333.5,0.30056]
[1735577462537,1.06736,3333.6,3333.0,2.29154086]
[1735577462739,0.30058,3333.3,3333.2,0.30059]
[1735577463332,0.7657,3333.5,3332.9,3.2078]
[1735577463547,3.9735,3333.5,3332.9,3.2078]
[1735577463732,3.9735,3333.5,3333.2,0.30059]
[1735577464045,0.30059,3333.2,3333.1,0.3006]
[1735577464344,0.30059,3333.3,3333.1,0.3006]
[1735577464541,0.30058,3333.4,3333.3,0.30058]
[1735577464743,3.9735,3333.5,3333.4,0.30057]
[1735577464744,3.2078,3333.5,3333.4,0.30057]
[1735577465543,0.30055,3333.7,3333.6,0.30056]
[1735577466139,0.30055,3333.7,3333.2,0.8128]
[1735577466343,0.30055,3333.7,3333.6,0.30056]
[1735577467046,0.30056,3333.6,3333.5,0.30056]
[1735577467448,0.30054,3333.8,3333.7,0.30055]
[1735577467742,3.2078,3333.9,3333.8,0.30054]
[1735577468340,3.2078,3333.9,3333.8,41.10054]
[1735577468942,0.30054,3333.8,3333.6,1.59555]
[1735577469142,0.30054,3333.8,3333.7,0.30055]
[1735577469348,0.30055,3333.7,3333.6,1.295]
[1735577469547,0.30059,3333.3,3333.2,0.30059]
[1735577469746,0.75135,3333.8,3333.1,1.295]
[1735577470049,0.30057,3333.5,3333.4,0.30057]
[1735577470647,0.7593,3333.8,3333.0,5.49934086]
[1735577470843,1.05984,3333.8,3333.7,0.30055]
[1735577471547,3.2078,3333.9,3333.8,0.30054]
[1735577471853,3.50833,3333.9,3333.8,0.30054]
[1735577472047,3.50833,3333.9,3333.3,2.29154086]
[1735577472048,3.2078,3333.9,3333.3,2.29154086]
[1735577472254,0.30057,3333.5,3333.4,0.30056]
[1735577472755,0.30056,3333.6,3333.5,0.30055]
[1735577472946,3.2078,3333.9,3333.8,0.30054]
[1735577473146,3.50833,3333.9,3333.8,0.30054]
[1735577475958,3.2078,3333.9,3333.8,0.30054]
[1735577476564,3.9671,3334.3,3334.2,0.3005]
[1735577476862,0.7593,3334.3,3334.2,3.5083]
[1735577477163,3.9957,3335.0,3334.2,5.79984086]
[1735577477354,3.9957,3335.0,3334.8,0.30045]
[1735577477355,0.8105,3334.9,3334.8,0.30045]
[1735577477555,0.8105,3334.9,3334.8,1.59545]
[1735577477761,0.8105,3334.9,3334.8,3.88699086]
[1735577478465,7.01001933,3335.4,3335.3,0.3004]
[1735577478662,4.3187,3335.4,3335.3,0.3004]
[1735577478854,4.0183,3335.4,3335.3,0.3004]
[1735577479466,3.50181933,3336.0,3335.1,2.29154086]
[1735577479667,0.30036,3335.8,3335.7,0.30037]
[1735577480269,0.30036,3335.8,3335.2,0.30041]
[1735577480270,0.30037,3335.7,3335.6,0.30037]
[1735577480464,0.8081,3335.9,3335.2,0.30041]
[1735577480759,0.8081,3335.9,3335.0,3.2078]
[1735577480959,0.3004,3335.4,3335.0,3.2078]
[1735577481162,0.30044,3334.9,3334.8,5.015106]
[1735577481362,0.30043,3335.0,3334.8,5.015106]
[1735577481562,4.299,3335.3,3335.2,0.30041]
[1735577481763,0.30039,3335.5,3335.4,0.30039]
[1735577481964,3.2078,3335.7,3335.1,2.29154086]
[1735577482163,3.2078,3335.7,3335.6,0.30038]
[1735577483166,3.2078,3336.1,3336.0,0.30034]
[1735577483462,3.2078,3336.1,3335.6,0.75093]
[1735577483463,6.70961933,3336.7,3335.8,5.49934086]
[1735577483666,6.70961933,3336.7,3336.6,0.30029]
[1735577484061,6.70961933,3336.7,3336.4,1.294]
[1735577484261,6.70961933,3336.7,3336.6,0.30029]
[1735577484462,7.00989933,3336.7,3336.5,0.30029]
[1735577484865,6.70961933,3336.7,3336.4,1.294]
[1735577485061,6.70961933,3336.7,3336.6,0.30029]
[1735577485267,3.2078,3336.7,3336.6,0.30029]
[1735577485462,3.2078,3336.7,3336.4,1.294]
[1735577485667,0.30029,3336.6,3336.4,1.5943]
[1735577485965,3.50808,3336.7,3336.5,0.30029]
[1735577486171,3.2078,3336.7,3336.6,0.30029]
[1735577486464,3.2078,3336.7,3336.4,1.294]
[1735577486671,0.30029,3336.6,3336.4,1.5943]
[1735577487068,3.2078,3336.7,3336.5,0.30029]
[1735577487265,3.2078,3336.7,3336.6,0.30029]
[1735577489167,3.50808,3336.7,3336.6,0.30029]
[1735577489472,0.30029,3336.5,3336.4,1.294]
[1735577489672,0.30029,3336.5,3336.4,0.3003]
[1735577489867,0.0026401,3336.6,3336.5,0.30029]
[1735577491566,0.0026401,3336.6,3336.5,1.09559]
[1735577492568,0.0026401,3336.6,3336.5,41.89559]
[1735577493074,0.0026401,3336.6,3336.3,0.30031]
[1735577493370,0.0026401,3336.6,3335.8,4.714666]
[1735577493570,0.30035,3335.9,3335.8,4.714666]
[1735577493970,0.30035,3335.9,3335.8,3.466866]
[1735577494566,3.2078,3336.2,3335.8,0.30035]
[1735577494770,3.2078,3336.2,3335.6,3.68947418]
[1735577494967,4.0167401,3336.6,3336.5,0.30029]
[1735577495183,0.8089401,3336.6,3336.5,0.30029]
[1735577495472,0.8089401,3336.6,3336.5,1.59329]
[1735577495473,0.0026401,3336.6,3336.5,1.59329]
[1735577496373,0.0026401,3336.6,3336.5,2.34339]
[1735577497372,0.0026401,3336.6,3336.5,3.13839]
[1735577498468,0.0026401,3336.6,3336.5,2.38829]
[1735577498671,0.0026401,3336.6,3336.5,1.59329]
[1735577499677,0.0026401,3336.6,3336.2,3.9875]
[1735577499878,0.0026401,3336.6,3336.2,3.2078]
[1735577500074,0.7533601,3336.6,3335.9,0.30034]
[1735577500274,0.30036,3335.9,3335.8,0.30035]
[1735577500477,0.30036,3335.8,3335.7,1.293]
[1735577500672,0.30035,3335.9,3335.8,0.30035]
[1735577502877,0.75088,3335.9,3334.8,0.75112]
[1735577503082,3.2078,3335.5,3334.8,1.293]
[1735577503376,0.7745,3335.4,3334.4,3.9648]
[1735577503582,0.7745,3335.4,3334.9,0.30043]
[1735577503583,0.30043,3335.0,3334.9,0.30043]
[1735577503773,0.7745,3335.4,3334.9,0.30043]
[1735577503774,0.3004,3335.3,3334.9,0.30043]
[1735577503974,0.3004,3335.3,3335.1,0.30041]
[1735577504283,0.7745,3335.4,3335.3,0.3004]
[1735577504480,1.07489,3335.4,3335.3,0.3004]
[1735577504778,0.7745,3335.4,3334.5,3.2078]
[1735577504979,0.7745,3335.4,3334.9,0.30044]
[1735577505314,0.7745,3335.4,3334.6,1.293]
[1735577505510,1.52549,3335.4,3334.6,1.293]
[1735577505690,0.30044,3334.9,3334.7,0.30046]
[1735577505890,0.7784,3334.8,3334.7,0.30046]
[1735577506201,1.07885,3334.8,3334.7,0.30046]
[1735577506500,0.30048,3334.4,3334.3,1.59349]
[1735577506697,3.2078,3334.6,3334.3,1.293]
[1735577506892,1.09288,3334.5,3334.3,1.59349]
[1735577507088,0.7924,3334.5,3334.3,1.59349]
[1735577507286,0.7924,3334.5,3334.4,0.30048]
[1735577508304,0.7924,3334.5,3334.3,42.093]
[1735577508502,1.09288,3334.5,3334.3,1.59349]
[1735577508700,1.09288,3334.5,3334.3,1.293]
[1735577509007,0.7924,3334.5,3334.0,1.294]
[1735577509209,1.09288,3334.5,3334.3,0.30049]
[1735577510710,0.7924,3334.5,3334.0,1.294]
[1735577510911,2.28546865,3334.4,3333.7,3.2078]
[1735577511412,0.30051,3334.2,3334.0,0.30052]
[1735577512006,0.30051,3334.1,3333.9,0.30052]
[1735577512508,0.8159,3334.0,3333.9,0.30052]
[1735577512701,1.11643,3334.0,3333.8,0.30053]
[1735577513503,0.30053,3333.9,3333.7,3.50834]
[1735577513798,1.11643,3334.0,3333.8,0.30054]
[1735577514095,0.30053,3333.9,3333.8,0.30054]
[1735577514383,0.8159,3334.0,3333.7,3.2078]
[1735577514587,0.8159,3334.0,3333.3,1.293]
[1735577514788,0.30057,3333.5,3333.3,1.59358]
[1735577514992,0.30056,3333.6,3333.5,0.30056]
[1735577515901,0.30053,3333.9,3333.3,0.30058]
[1735577516190,1.56723,3334.0,3333.4,0.30056]
[1735577516378,0.30058,3333.4,3333.3,0.30058]
[1735577516581,0.75133,3333.9,3333.2,4.5008]
[1735577516783,0.30058,3333.3,3333.2,4.5008]
[1735577516991,0.30058,3333.3,3333.2,1.59359]
[1735577517190,3.9622,3333.7,3333.2,1.293]
[1735577517492,0.30057,3333.5,3333.4,0.30057]
[1735577518190,3.9622,3333.7,3333.2,1.293]
[1735577518387,0.30058,3333.4,3333.3,0.30058]
[1735577518693,3.9622,3333.7,3333.6,0.30056]
[1735577518888,3.2078,3333.7,3333.2,1.293]
[1735577519089,3.2078,3333.7,3333.6,0.30056]
[1735577519293,3.2078,3333.7,3333.2,3.57846865]
[1735577519591,0.30056,3333.6,3333.5,0.30056]
[1735577519786,0.30055,3333.7,3333.6,0.30055]
[1735577520380,0.7955,3333.9,3333.8,0.30054]
[1735577520593,1.09603,3333.9,3333.8,0.30054]
[1735577520985,0.7955,3333.9,3333.8,0.30054]
[1735577521196,3.2078,3334.1,3333.9,0.30053]
[1735577521486,0.30056,3333.7,3333.6,0.30055]
[1735577521692,0.30056,3333.6,3333.5,3.2078]
[1735577521896,0.30056,3333.6,3333.5,3.50836]
[1735577522188,0.7704,3334.0,3333.5,3.2078]
[1735577522387,1.07092,3334.0,3333.9,0.30053]
[1735577522786,0.7704,3334.0,3333.9,0.30053]
[1735577523098,3.2078,3334.1,3333.5,5.49326865]
[1735577523296,3.2078,3334.1,3333.6,0.7917]
[1735577523596,0.30055,3333.7,3333.6,0.30055]
[1735577523799,0.30054,3333.9,3333.8,0.30053]
[1735577523996,3.2078,3334.1,3333.5,3.2078]
[1735577524293,3.50832,3334.1,3334.0,0.30052]
[1735577524492,3.2078,3334.1,3333.3,40.8]
[1735577524790,0.75131,3334.0,3333.5,0.30056]
[1735577524993,0.30054,3333.8,3333.7,0.30054]
[1735577525385,3.2078,3334.1,3333.3,0.75146]
[1735577525589,3.2078,3334.1,3334.0,0.30052]
[1735577525797,2.3759,3334.5,3334.4,0.30048]
[1735577525798,1.5948,3334.5,3334.4,0.30048]
[1735577525994,3.2078,3334.6,3334.5,0.30047]
[1735577526497,0.30049,3334.5,3334.4,0.30048]
[1735577526685,3.50827,3334.6,3334.5,0.30047]
[1735577527289,3.2078,3334.6,3334.5,0.30047]
[1735577527797,0.30046,3334.8,3334.7,0.30045]
[1735577527991,0.30046,3334.8,3334.4,3.2078]
[1735577527992,3.2078,3334.8,3334.4,3.2078]
[1735577528294,0.30047,3334.5,3334.4,0.30048]
[1735577529492,3.2078,3334.8,3334.2,0.75126]
[1735577529694,3.2078,3334.8,3334.7,0.30046]
[1735577530195,3.50825,3334.8,3334.7,0.30046]
[1735577530492,3.2078,3334.8,3334.2,0.7658]
[1735577530693,3.2078,3334.8,3334.1,0.7608]
[1735577530906,0.30048,3334.5,3334.4,0.30047]
[1735577531806,3.2078,3334.8,3334.2,0.75124]
[1735577532101,0.30046,3334.7,3334.6,0.30046]
[1735577532396,3.50825,3334.8,3334.7,0.30046]
[1735577532600,3.2078,3334.8,3334.7,0.30046]
[1735577532799,0.8218,3335.0,3334.9,0.30044]
[1735577533401,3.2078,3335.2,3334.7,1.293]
[1735577533599,3.2078,3335.2,3335.1,0.30042]
[1735577534095,1.6132,3335.7,3334.8,3.10573]
[1735577534096,4.821,3335.7,3335.5,0.30038]
[1735577534397,1.6132,3335.7,3335.2,3.2078]
[1735577534696,1.91357,3335.7,3335.4,0.30039]
[1735577534903,1.6132,3335.7,3334.8,8.59897865]
[1735577535102,0.30038,3335.6,3335.3,0.3004]
[1735577535303,0.30042,3335.2,3335.1,0.30042]
[1735577535497,0.30041,3335.3,3335.2,0.30041]
[1735577535802,4.821,3335.7,3334.8,5.5624]
[1735577535997,0.30041,3335.3,3335.1,0.30042]
[1735577536399,0.30041,3335.3,3335.2,0.30041]
[1735577536599,0.3004,3335.4,3335.3,0.3004]
[1735577537009,4.821,3335.7,3334.8,7.84786865]
[1735577537206,0.30044,3334.9,3334.8,5.07634]
[1735577537406,0.30043,3335.1,3335.0,0.30043]
[1735577538207,0.30042,3335.2,3335.1,0.30042]
[1735577538500,0.30041,3335.3,3335.2,0.30041]
[1735577539609,0.30041,3335.2,3335.1,0.30042]
[1735577540308,0.30041,3335.3,3335.2,0.30041]
[1735577540509,0.30041,3335.3,3334.8,4.7759]
[1735577540510,0.30038,3335.6,3335.1,0.30041]
[1735577540807,0.30041,3335.3,3334.8,4.7759]
[1735577541003,0.30041,3335.3,3335.2,0.30041]
[1735577541195,4.821,3335.7,3334.8,7.81247865]
[1735577541398,0.30039,3335.5,3335.4,0.30039]
[1735577541800,4.821,3335.7,3334.8,7.06136865]
[1735577542008,3.2078,3335.7,3335.6,0.30038]
[1735577542207,0.7916,3336.1,3335.6,0.30038]